fUSD/lending_fUSD_20260228
["ID","MTS","AMOUNT","RATE_DAILY","PERIOD"]
[406884398,1772264831711,-1000000.0,0.00051,120]
[406884399,1772264831783,-1000000.0,0.00051,120]
[406884400,1772264831843,-210.94,0.00051,120]
[406884401,1772264831908,-578000.0,0.00051,120]
[406884402,1772264831968,-151.0,0.00051233,90]
[406884403,1772264832028,-218.72691,0.00051233,90]
[406884404,1772264832088,-572.92373703,0.000514,120]
[406884405,1772264832149,-292.13386174,0.00051452,60]
[406884406,1772264832210,-151.0,0.000515,120]
[406884407,1772264832279,-500.0,0.00051999,120]
[406884408,1772264832333,-151.0,0.00051999,120]
[406884409,1772264832392,-518.5,0.00051999,120]
[406884410,1772264832448,-500.0,0.00051999,120]
[406884411,1772264832506,-151.0,0.00051999,120]
[406884412,1772264832566,-537.6845,0.00051999,120]
[406884413,1772264832623,-500.0,0.00051999,120]
[406884414,1772264832679,-151.0,0.00051999,120]
[406884415,1772264832742,-557.5788265,0.00051999,120]
[406884416,1772264832808,-151.0,0.00051999,120]
[406884417,1772264832868,-578.20924308,0.00051999,120]
[406884418,1772264832928,-151.0,0.00051999,120]
[406884419,1772264832989,-599.60298507,0.00051999,120]
[406884420,1772264833051,-365433.1686811,0.00052,120]
[406884421,1772264833111,-1000000.0,0.00052,120]
[406884422,1772264833168,-1000000.0,0.00052,120]
[406884423,1772264833228,-48450.30145265,0.00052,120]
[406884424,1772264837020,-7929.14269639,0.00049875,60]
[406884425,1772264837077,-164.61536018,0.000499,120]
[406884426,1772264837136,-164.61536018,0.000514,120]
[406884427,1772264837196,-151.0,0.00051999,120]
[406884428,1772264837254,-621.78829552,0.00051999,120]
[406884429,1772264837312,-151.0,0.00051999,120]
[406884430,1772264837372,-644.79446246,0.00051999,120]
[406884431,1772264837432,-151.0,0.00051999,120]
[406884432,1772264837492,-668.65185757,0.00051999,120]
[406884433,1772264837549,-151.0,0.00051999,120]
[406884434,1772264837612,-693.3919763,0.00051999,120]
[406884435,1772264837676,-151.0,0.00051999,120]
[406884436,1772264837745,-719.04747942,0.00051999,120]
[406884437,1772264837804,-151.0,0.00051999,120]
[406884438,1772264837864,-745.65223616,0.00051999,120]
[406884439,1772264837924,-151.0,0.00051999,120]
[406884440,1772264837984,-773.2413689,0.00051999,120]
[406884441,1772264838041,-151.0,0.00051999,120]
[406884442,1772264838101,-801.85129955,0.00051999,120]
[406884443,1772264838159,-951549.69854735,0.00052,120]
[406884444,1772264838217,-1000000.0,0.00052,120]
[406884445,1772264838277,-243151.65,0.00052,120]
[406884446,1772264838340,-558259.47,0.00052,70]
[406884447,1772264838394,-3886.52169507,0.00052,120]
[406884448,1772264838453,-379.56,0.00052,30]
[406884449,1772264838510,-29951.79686611,0.00052,30]
[406884450,1772264838568,-151.0,0.00052,120]
[406884451,1772264838629,-151.0,0.00052,120]
[406884452,1772264838685,-151.0,0.00052,90]
[406884453,1772264838745,-6044.49871209,0.00052022,120]
[406884454,1772264838815,-500.0,0.00052047,60]
[406884455,1772264838871,-500.0,0.00052054,120]
[406884456,1772264838928,-10000.0,0.00052055,120]
[406884457,1772264838985,-5000.0,0.00052055,120]
[406884458,1772264839040,-2673.06926496,0.000521,120]
[406884459,1772264839094,-311.97228714,0.000522,120]
[406884460,1772264839148,-585.64,0.000523,120]
[406884461,1772264839204,-828.91539417,0.00052376,30]
[406884462,1772264839259,-5983.73975827,0.000524,120]
[406884463,1772264839315,-4063.0,0.0005243,81]
[406884464,1772264839371,-3000.0,0.000525,120]
[406884465,1772264839428,-3000.0,0.000525,120]
[406884466,1772264839484,-5845.41447626,0.000525,120]
[406884467,1772264839539,-19971.83653153,0.000525,120]
[406884468,1772264839595,-157.99194474,0.000525,120]
[406884469,1772264839647,-1184.62593129,0.000525,120]
[406884470,1772264839705,-11099.00413363,0.00052506,30]
[406884471,1772264839764,-500.0,0.00052602,120]
[406884472,1772264839824,-10000.0,0.00052603,120]
[406884473,1772264839882,-993.0,0.000527,120]
[406884474,1772264839938,-585.66,0.000527,120]
[406884475,1772264839996,-500.0,0.00052702,60]
[406884476,1772264840058,-562.95571817,0.00052792,30]
[406884477,1772264840119,-21616.0,0.000528,120]
[406884478,1772264840178,-2582.37713276,0.000528,30]
[406884479,1772264840239,-50000.0,0.000528,105]
[406884480,1772264840301,-50000.0,0.000528,110]
[406884481,1772264840362,-50000.0,0.000528,115]
[406884482,1772264840421,-164.95280072,0.000528,120]
[406884483,1772264840483,-168.24342824,0.000528,120]
[406884484,1772264840543,-3861.83320581,0.00052875,60]
[406884485,1772264840600,-690.1030315,0.00052898,120]
[406884486,1772264840659,-2025.62287828,0.00052983,120]
[406884487,1772264840723,-29069.63004148,0.00053,53]
[406884488,1772264840781,-10000.0,0.00053,90]
[406884489,1772264840839,-150.0,0.00053,120]
[406884490,1772264840903,-1000.0,0.00053,120]
[406884491,1772264840972,-558033.85,0.00053,70]
[406884492,1772264841033,-437.76661772,0.00053,30]
[406884493,1772264841093,-25318.23153805,0.00053,120]
[406884494,1772264841154,-1278.46194,0.00053,90]
[406884495,1772264841213,-157.04425106,0.00053,120]
[406884496,1772264841276,-9999.9999,0.00053,120]
[406884497,1772264841336,-1000000.0,0.00053,120]
[406884498,1772264841395,-1655.0,0.00053,120]
[406884499,1772264841454,-285133.06958097,0.00053,120]
[406884500,1772264858331,-500.0,0.00045,60]
[406884501,1772264858423,-500.0,0.00045,60]
[406884502,1772264858503,-357.76007336,0.00045,60]
[406884503,1772264858572,-500.0,0.00045,60]
[406884504,1772264858641,-500.0,0.00045,60]
[406884505,1772264858712,-500.0,0.00045,60]
[406884506,1772264858781,-500.0,0.00045,60]
[406884507,1772264858853,-800.0,0.00045,60]
[406884508,1772264858928,-500.0,0.00045,60]
[406884509,1772264859003,-500.0,0.00045,60]
[406884510,1772264859074,-500.0,0.00045,60]
[406884511,1772264859142,-506.8082533,0.00045,60]
[406884512,1772264859217,-500.0,0.00045,60]
[406884513,1772264859295,-500.0,0.00045,60]
[406884514,1772264859367,-500.0,0.00045,60]
[406884515,1772264859440,-500.0,0.00045,60]
[406884516,1772264859516,-500.0,0.00045,60]
[406884517,1772264859610,-500.0,0.00045,60]
[406884518,1772264859679,-500.0,0.00045,60]
[406884519,1772264859758,-180.23944072,0.000499,120]
[406884520,1772264859835,-185.58111584,0.000499,120]
[406884521,1772264859915,-151.0,0.00051,60]
[406884522,1772264860010,-186.246657,0.00051,120]
[406884523,1772264860104,-185.58111584,0.000514,120]
[406884524,1772264860205,-151.0,0.00051999,120]
[406884525,1772264860305,-831.51979763,0.00051999,120]
[406884526,1772264860400,-151.0,0.00051999,120]
[406884527,1772264860501,-862.28603014,0.00051999,120]
[406884528,1772264860600,-500.0,0.00051999,120]
[406884529,1772264860695,-151.0,0.00051999,120]
[406884530,1772264860795,-894.19061326,0.00051999,120]
[406884531,1772264860892,-500.0,0.00051999,120]
[406884532,1772264860988,-151.0,0.00051999,120]
[406884533,1772264861090,-927.27566595,0.00051999,120]
[406884534,1772264861191,-500.0,0.00051999,120]
[406884535,1772264861296,-151.0,0.00051999,120]
[406884536,1772264861397,-961.58486559,0.00051999,120]
[406884537,1772264861496,-500.0,0.00051999,120]
[406884538,1772264861594,-151.0,0.00051999,120]
[406884539,1772264861698,-997.16350561,0.00051999,120]
[406884540,1772264861788,-500.0,0.00051999,120]
[406884541,1772264861898,-151.0,0.00051999,120]
[406884542,1772264861998,-500.0,0.00051999,120]
[406884543,1772264862098,-500.0,0.00051999,120]
[406884544,1772264862199,-500.0,0.00051999,120]
[406884545,1772264862303,-500.0,0.00051999,120]
[406884546,1772264862402,-500.0,0.00051999,120]
[406884547,1772264862500,-211.021422,0.00051999,120]
[406884548,1772264862600,-500.0,0.00051999,120]
[406884549,1772264862694,-500.0,0.00051999,120]
[406884550,1772264862790,-500.0,0.00051999,120]
[406884551,1772264862873,-500.0,0.00051999,120]
[406884552,1772264862970,-500.0,0.00051999,120]
[406884553,1772264863067,-500.0,0.00051999,120]
[406884554,1772264863166,-500.0,0.00051999,120]
[406884555,1772264863264,-500.0,0.00051999,120]
[406884556,1772264863365,-500.0,0.00051999,120]
[406884557,1772264863459,-500.0,0.00051999,120]
[406884558,1772264863554,-151.0,0.00052,60]
[406884559,1772264863639,-509.0797646,0.000529,120]
[406884560,1772264863717,-714866.93041903,0.00053,120]
[406884561,1772264863809,-1000000.0,0.00053,120]
[406884562,1772264863901,-9635.22867006,0.00053,120]
[406884563,1772264864000,-587.949367,0.00053,120]
[406884564,1772264864093,-1000000.0,0.00053,120]
[406884565,1772264864189,-1000000.0,0.00053,120]
[406884566,1772264864284,-1000000.0,0.00053,120]
[406884567,1772264864374,-246954.55322307,0.00053,120]
[406884568,1772264877774,-189.9610781,0.000498,30]
[406884569,1772264877838,-164.95280072,0.000499,120]
[406884570,1772264877894,-168.24342825,0.000499,120]
[406884571,1772264877951,-500.0,0.00051999,120]
[406884572,1772264878009,-500.0,0.00051999,120]
[406884573,1772264878063,-500.0,0.00051999,120]
[406884574,1772264878114,-500.0,0.00051999,120]
[406884575,1772264878168,-500.0,0.00051999,120]
[406884576,1772264878221,-500.0,0.00051999,120]
[406884577,1772264878277,-500.0,0.00051999,120]
[406884578,1772264878330,-500.0,0.00051999,120]
[406884579,1772264878396,-500.0,0.00051999,120]
[406884580,1772264878450,-500.0,0.00051999,120]
[406884581,1772264878514,-753045.44677693,0.00053,120]
[406884582,1772264878569,-572.92373703,0.00053,120]
[406884583,1772264878625,-151.0,0.00053,90]
[406884584,1772264878680,-151.0,0.00053,90]
[406884585,1772264878732,-164.61536018,0.00053,120]
[406884586,1772264878789,-891.58158456,0.00053002,30]
[406884587,1772264878840,-157.0,0.000531,120]
[406884588,1772264878890,-500.0,0.00053143,60]
[406884589,1772264878940,-531.0,0.00053197,120]
[406884590,1772264878992,-235.59012317,0.000532,120]
[406884591,1772264879044,-2000.0,0.000532,120]
[406884592,1772264879094,-155.0,0.000532,120]
[406884593,1772264879159,-2729.17585733,0.00053298,30]
[406884594,1772264879215,-1622307.02771843,0.000533,120]
[406884595,1772264879268,-310032.66456232,0.000533,120]
[406884596,1772264879320,-3850.21453985,0.000533,120]
[406884597,1772264879376,-2699.34405487,0.00053405,30]
[406884598,1772264879431,-500.0,0.00053424,120]
[406884599,1772264879486,-555.46765675,0.00053424,120]
[406884600,1772264879540,-10000.0,0.00053425,120]
[406884601,1772264879595,-1349.0955426,0.000535,120]
[406884602,1772264879653,-3000.0,0.000535,120]
[406884603,1772264879707,-1670.58892121,0.000535,120]
[406884604,1772264879771,-3000.0,0.000535,120]
[406884605,1772264879842,-2274228.1062577,0.000535,120]
[406884606,1772264883173,-2725771.8937423,0.000535,120]
[406884607,1772264883236,-292.98,0.000535,120]
[406884608,1772264883297,-151.0,0.000535,90]
[406884609,1772264883352,-151.0,0.000535,30]
[406884610,1772264883408,-2000.0,0.000537,120]
[406884611,1772264883469,-225073.20918535,0.000538,120]
[406884612,1772264883524,-549.0,0.000539,120]
[406884613,1772264883584,-2679.8383,0.000539,100]
[406884614,1772264883643,-3056.26085111,0.000539,120]
[406884615,1772264883699,-10146.77193586,0.000539,120]
[406884616,1772264883754,-625.65,0.00053971,120]
[406884617,1772264883812,-4862.507071,0.00053995,120]
[406884618,1772264883868,-300.0,0.00054,120]
[406884619,1772264883921,-5000.0,0.00054,120]
[406884620,1772264883975,-7386.0,0.00054,120]
[406884621,1772264884027,-207.6272038,0.00054,120]
[406884622,1772264884083,-1000.0,0.00054,120]
[406884623,1772264884137,-646.4,0.00054,120]
[406884624,1772264884195,-648.834704,0.00054,120]
[406884625,1772264884250,-100790.39529617,0.00054,120]
[406884626,1772264884310,-1151.0,0.00054,120]
[406884627,1772264884366,-17500.0,0.00054,60]
[406884628,1772264884426,-10735.06861,0.00054,120]
[406884629,1772264884483,-8169.97359256,0.00054,120]
[406884630,1772264884689,-11000.0,0.00054,120]
[406884631,1772264884746,-10461.2630379,0.00054,120]
[406884632,1772264884804,-6656.846767,0.00054,120]
[406884633,1772264884862,-284.63442187,0.00054,120]
[406884634,1772264884918,-163253.0,0.00054,120]
[406884635,1772264884975,-15074.40743648,0.00054,120]
[406884636,1772264885035,-1000000.0,0.00054,120]
[406884637,1772264885095,-918.68816818,0.00054,120]
[406884638,1772264885153,-663455.74967642,0.00054,120]
[406884639,1772264888081,-151.0,0.00051,120]
[406884640,1772264888148,-336544.25032358,0.00054,120]
[406884641,1772264888213,-1000000.0,0.00054,120]
[406884642,1772264888275,-1000000.0,0.00054,120]
[406884643,1772264888336,-10361.6456736,0.00054,120]
[406884644,1772264888396,-2389.0,0.00054,120]
[406884645,1772264888457,-864.46062198,0.00054,120]
[406884646,1772264888517,-1023.74,0.00054,30]
[406884647,1772264888580,-1064.80361236,0.00054,120]
[406884648,1772264888646,-506.43837324,0.00054,120]
[406884649,1772264888710,-151.0,0.00054,30]
[406884650,1772264888782,-151.0,0.00054,30]
[406884651,1772264888849,-6044.49871209,0.00054022,120]
[406884652,1772264888916,-9471.27744508,0.000541,120]
[406884653,1772264888983,-3060.0,0.000542,120]
[406884654,1772264889054,-19630.26352386,0.00054213,30]
[406884655,1772264889125,-441.31257376,0.00054228,30]
[406884656,1772264889188,-500.0,0.00054239,60]
[406884657,1772264889256,-500.0,0.00054246,120]
[406884658,1772264889320,-411.5,0.00054269,120]
[406884659,1772264889384,-320.0,0.0005429,30]
[406884660,1772264889448,-1921.8340577,0.000543,120]
[406884661,1772264889511,-244.32749743,0.000544,30]
[406884662,1772264889574,-3874.66074956,0.000544,120]
[406884663,1772264889641,-57550.14469084,0.000544,30]
[406884664,1772264889715,-3681.10612483,0.000545,120]
[406884665,1772264889789,-224.34034125,0.000545,120]
[406884666,1772264889865,-6000.0,0.000545,120]
[406884667,1772264889937,-414.29763681,0.000545,120]
[406884668,1772264890010,-4245.0,0.0005453,81]
[406884669,1772264890085,-10000.0,0.00054589,120]
[406884670,1772264890161,-2000.0,0.000546,90]
[406884671,1772264890238,-572.92373703,0.000546,120]
[406884672,1772264890316,-164.61536018,0.000546,120]
[406884673,1772264890393,-968.92104185,0.00054651,120]
[406884674,1772264890492,-7318.63458948,0.00054651,120]
[406884675,1772264890586,-249.57739378,0.00054654,120]
[406884676,1772264890663,-1455.71553529,0.00054656,120]
[406884677,1772264890740,-7480.2733252,0.00054657,120]
[406884678,1772264890828,-9231.41475361,0.00054659,120]
[406884679,1772264890911,-6431.28679912,0.00054663,120]
[406884680,1772264891003,-1449.58378831,0.00054663,120]
[406884681,1772264891103,-3610.92290241,0.00054665,120]
[406884682,1772264891186,-217.22579005,0.00054671,120]
[406884683,1772264891287,-212.9632246,0.00054673,120]
[406884684,1772264891374,-3943.66316779,0.00054673,120]
[406884685,1772264891458,-815.60736305,0.00054674,120]
[406884686,1772264891557,-251.54107432,0.00054675,120]
[406884687,1772264891652,-7254.5594751,0.00054676,120]
[406884688,1772264891727,-211.66421314,0.00054677,120]
[406884689,1772264891803,-1471.86226823,0.00054678,120]
[406884690,1772264891883,-4170.35988515,0.00054681,120]
[406884691,1772264891962,-252.46572964,0.00054681,120]
[406884692,1772264892049,-2541.9801947,0.00054682,120]
[406884693,1772264892124,-5700.40839586,0.00054683,120]
[406884694,1772264892203,-178283.18411322,0.00054683,120]
[406884695,1772264892294,-616102.67,0.0005469,120]
[406884696,1772264892370,-616.15031382,0.00054697,120]
[406884697,1772264892449,-18696.58693749,0.000547,120]
[406884698,1772264892526,-1583.98,0.000547,90]
[406884699,1772264892606,-20607.51471033,0.000547,120]
[406884700,1772264892688,-9976.87320112,0.00054707,30]
[406884701,1772264892767,-227.79036117,0.0005474,30]
[406884702,1772264892847,-500.0,0.0005474,30]
[406884703,1772264892928,-1000.0,0.0005475,120]
[406884704,1772264893009,-1006.38342551,0.0005479,120]
[406884705,1772264893114,-317.3446422,0.00054794,120]
[406884706,1772264893222,-500.0,0.00054794,120]
[406884707,1772264893327,-500.0,0.00054794,120]
[406884708,1772264893429,-494.07574783,0.00054794,120]
[406884709,1772264893533,-346.0,0.00054795,30]
[406884710,1772264893621,-1600.0,0.00054795,120]
[406884711,1772264893731,151.0,0.00054795,30]
[406884712,1772264893852,151.0,0.00054795,30]
[406884713,1772264893953,151.0,0.00054795,30]
[406884714,1772264894071,151.0,0.00054795,30]
[406884715,1772264894188,151.0,0.00054795,30]
[406884716,1772264894326,500.0,0.00054795,30]
[406884717,1772264894434,151.0,0.00054795,30]
[406884718,1772264894541,518.5,0.00054795,30]
[406884719,1772264894681,151.0,0.00054795,30]
[406884720,1772264894985,537.6845,0.00054795,30]
[406884721,1772264895115,151.0,0.00054795,30]
[406884722,1772264895227,557.5788265,0.00054795,30]
[406884723,1772264895337,151.0,0.00054795,30]
[406884724,1772264895517,578.20924308,0.00054795,30]
[406884725,1772264895628,3968.4,0.00054794,30]
[406884726,1772264895720,151.0,0.00054795,30]
[406884727,1772264895831,599.60298507,0.00054795,30]
[406884728,1772264895931,500.0,0.00049315,120]
[406884729,1772264896026,151.0,0.00054795,30]
[406884730,1772264896134,621.78829552,0.00054795,30]
[406884731,1772264896236,500.0,0.00049315,120]
[406884732,1772264896339,500.0,0.00054795,30]
[406884733,1772264896437,500.0,0.00049315,120]
[406884734,1772264896524,509.59444922,0.00049315,120]
[406884735,1772264896610,644.79446246,0.00054795,30]
[406884736,1772264896690,500.0,0.00054795,30]
[406884737,1772264896771,151.0,0.00054795,30]
[406884738,1772264896854,668.65185757,0.00054795,30]
[406884739,1772264896938,613.02109217,0.00054795,30]
[406884740,1772264897015,151.0,0.00054795,30]
[406884741,1772264897215,693.3919763,0.00054795,30]
[406884742,1772264897496,151.0,0.00054795,30]
[406884743,1772264897862,719.04747942,0.00054795,30]
[406884744,1772264898136,151.0,0.00054795,30]
[406884745,1772264898554,745.65223616,0.00054795,30]
[406884746,1772264899732,151.0,0.00054795,30]
[406884747,1772264902528,151.0,0.00054795,30]
[406884748,1772264915744,-500.0,0.00046299,120]
[406884749,1772264969009,-159.91,7.5e-05,2]
[406884750,1772264969035,-1349.09,7.501e-05,2]
[406884751,1772265019700,863.37098036,0.0001,3]
[406884755,1772265032146,-171.0,7.504e-05,2]
[406884756,1772265032157,-1200.0,7.504e-05,2]
[406884757,1772265032166,-150.0,7.505e-05,2]
[406884758,1772265032176,-300.0,7.505e-05,2]
[406884759,1772265032186,-202.35673349,7.505e-05,2]
[406884760,1772265032197,-97.64326651,7.505e-05,2]
[406884761,1772265032207,-2634.4575039,7.506e-05,2]
[406884762,1772265032222,-2407.72038713,7.506e-05,2]
[406884763,1772265032234,-24295.15824292,7.506e-05,2]
[406884764,1772265032245,-24367.54386605,7.506e-05,2]
[406884765,1772265032255,-12130.53,7.678e-05,2]
[406884766,1772265032269,-413.51273747,7.772e-05,2]
[406884767,1772265032282,-6331.61426253,7.772e-05,2]
[406884768,1772265032293,-19176.02,7.772e-05,2]
[406884769,1772265032303,-2247.92454066,7.872e-05,2]
[406884770,1772265032313,-8924.87,7.872e-05,2]
[406884771,1772265032323,-9999.99,7.872e-05,2]
[406884772,1772265032332,-2080.47041306,7.872e-05,2]
[406884773,1772265032344,-979.1425139,7.872e-05,2]
[406884782,1772265038460,-1382.06179791,7.872e-05,2]
[406884783,1772265038473,-3223.34527513,7.872e-05,2]
[406884784,1772265038483,-313.13,7.872e-05,2]
[406884785,1772265038492,-150.99,7.872e-05,2]
[406884786,1772265038502,-999.99,7.9e-05,2]
[406884787,1772265038512,-150.99,7.9e-05,2]
[406884788,1772265038520,-9999.99,7.9e-05,2]
[406884789,1772265038529,-299.99,7.9e-05,2]
[406884790,1772265038538,-499.99,7.9e-05,2]
[406884791,1772265038547,-30403.0,7.973e-05,2]
[406884792,1772265038557,-502.24115013,8.003e-05,2]
[406884793,1772265038566,-500.0,8.003e-05,2]
[406884794,1772265038575,-500.0,8.003e-05,2]
[406884795,1772265038585,-500.0,8.003e-05,2]
[406884796,1772265038594,-500.0,8.003e-05,2]
[406884797,1772265038604,-500.0,8.003e-05,2]
[406884798,1772265038614,-500.58678737,8.003e-05,2]
[406884799,1772265038623,-500.0,8.003e-05,2]
[406884800,1772265038633,-500.0,8.003e-05,2]
[406884801,1772265038643,-500.0,8.003e-05,2]
[406884802,1772265038653,-500.0,8.003e-05,2]
[406884803,1772265038662,-500.30851718,8.003e-05,2]
[406884804,1772265038672,-501.59993335,8.003e-05,2]
[406884805,1772265038681,-500.0,8.003e-05,2]
[406884806,1772265038690,-500.67601232,8.003e-05,2]
[406884807,1772265038699,-500.0,8.003e-05,2]
[406884808,1772265038708,-500.0,8.003e-05,2]
[406884809,1772265038717,-503.06902733,8.003e-05,2]
[406884810,1772265038726,-500.0,8.003e-05,2]
[406884811,1772265038735,-500.43690086,8.003e-05,2]
[406884812,1772265038745,-500.0,8.003e-05,2]
[406884813,1772265038754,-500.0,8.003e-05,2]
[406884814,1772265038764,-493.67205134,8.003e-05,2]
[406884815,1772265038773,-501.05665714,8.003e-05,2]
[406884816,1772265038782,-500.0,8.003e-05,2]
[406884817,1772265038792,-341.60788349,8.003e-05,2]
[406884818,1772265038801,-500.0,8.003e-05,2]
[406884819,1772265038810,-500.0,8.003e-05,2]
[406884820,1772265038820,-501.72819961,8.003e-05,2]
[406884821,1772265038830,-164.6207651,8.003e-05,2]
[406884822,1772265038840,-11830.25984,8.178e-05,2]
[406884823,1772265038849,-150.0,8.219e-05,2]
[406884824,1772265038859,-150.320114,8.219e-05,2]
[406884825,1772265038868,-150.640228,8.219e-05,2]
[406884826,1772265038878,-150.960342,8.219e-05,2]
[406884827,1772265038887,-151.280456,8.219e-05,2]
[406884828,1772265038896,-151.600571,8.219e-05,2]
[406884829,1772265038906,-151.920685,8.219e-05,2]
[406884830,1772265038915,-152.240799,8.219e-05,2]
[406884831,1772265038925,-152.560913,8.219e-05,2]
[406884832,1772265038934,-152.881028,8.219e-05,2]
[406884833,1772265038944,-434.189284,8.219e-05,2]
[406884834,1772265038953,-629.09238616,8.219e-05,2]
[406884835,1772265038963,-195.0,8.251e-05,2]
[406884836,1772265038973,-1680.0,8.254e-05,2]
[406884837,1772265038983,-255.0,8.256e-05,2]
[406884838,1772265038992,-281.0,8.256e-05,2]
[406884839,1772265039002,-1122.0,8.279e-05,2]
[406884840,1772265039012,-162.0,8.467e-05,2]
[406884841,1772265039022,-1000.0,8.551e-05,2]
[406884842,1772265039032,-1000.0,8.551e-05,2]
[406884843,1772265039042,-803.26269508,8.593e-05,2]
[406884844,1772265039052,-226.38041342,8.673e-05,2]
[406884845,1772265039062,-566.09,8.673e-05,2]
[406884848,1772265039073,-162.0,8.832e-05,2]
[406884850,1772265039083,-369.7453968,8.853e-05,2]
[406884852,1772265039093,-562.95,8.935e-05,2]
[406884853,1772265039103,-566.09,8.947e-05,2]
[406884856,1772265039114,-360.79310177,8.966e-05,2]
[406884857,1772265039124,-500.0,9.003e-05,2]
[406884859,1772265039134,-500.0,9.003e-05,2]
[406884861,1772265039149,-2351.0,9.08e-05,2]
[406884863,1772265039158,-433.0,9.081e-05,2]
[406884865,1772265039168,-1500.0,9.098e-05,2]
[406884867,1772265039182,-1500.0,9.098e-05,2]
[406884869,1772265039192,-1893.006425,9.12e-05,2]
[406884871,1772265039202,-162.0,9.196e-05,2]
[406884873,1772265039211,-566.09,9.221e-05,2]
[406884875,1772265039222,-360.0,9.362e-05,2]
[406884878,1772265039237,-566.09,9.495e-05,2]
[406884880,1772265039258,-304.0,9.538e-05,2]
[406884882,1772265039278,-190.0,9.557e-05,2]
[406884883,1772265039288,-162.0,9.561e-05,2]
[406884886,1772265039300,-172.0,9.576e-05,2]
[406884888,1772265039311,-2000.0,9.646e-05,2]
[406884890,1772265039320,-1770.0,9.715e-05,2]
[406884892,1772265039329,-420.0,9.735e-05,2]
[406884894,1772265039339,-566.09,9.768e-05,2]
[406884896,1772265039349,-250.0,9.91e-05,2]
[406884897,1772265039358,-162.0,9.925e-05,2]
[406884899,1772265039367,-3292.0,9.988e-05,2]
[406884902,1772265039378,-736.0,9.99e-05,2]
[406884904,1772265039389,-151.0,0.0001,2]
[406884905,1772265039398,-151.0,0.0001,2]
[406884908,1772265039407,-151.0,0.0001,2]
[406884910,1772265039416,-151.0,0.0001,2]
[406884912,1772265039425,-151.0,0.0001,2]
[406884914,1772265039435,-151.0,0.0001,2]
[406884916,1772265039443,-151.0,0.0001,2]
[406884917,1772265039452,-151.0,0.0001,2]
[406884919,1772265039461,-151.0,0.0001,2]
[406884921,1772265039471,-151.0,0.0001,2]
[406884924,1772265039481,-151.0,0.0001,2]
[406884925,1772265039490,-151.0,0.0001,2]
[406884928,1772265039501,-151.0,0.0001,2]
[406884930,1772265039510,-151.0,0.0001,2]
[406884932,1772265039520,-151.0,0.0001,2]
[406884933,1772265039529,-151.0,0.0001,2]
[406884936,1772265039538,-151.0,0.0001,2]
[406884937,1772265039548,-151.0,0.0001,2]
[406884939,1772265039557,-151.0,0.0001,2]
[406884941,1772265039567,-151.0,0.0001,2]
[406884943,1772265039577,-151.0,0.0001,2]
[406884946,1772265039586,-151.0,0.0001,2]
[406884948,1772265039596,-151.0,0.0001,2]
[406884949,1772265039605,-151.0,0.0001,2]
[406884951,1772265039615,-151.0,0.0001,2]
[406884953,1772265039624,-151.0,0.0001,2]
[406884955,1772265039634,-151.0,0.0001,2]
[406884957,1772265039645,-151.0,0.0001,2]
[406884959,1772265039655,-151.0,0.0001,2]
[406884962,1772265039664,-151.0,0.0001,2]
[406884964,1772265039673,-726.10987878,0.0001,2]
[406884965,1772265039683,-726.10987878,0.0001,2]
[406884967,1772265039692,-726.10987878,0.0001,2]
[406884970,1772265039701,-452.66344463,0.0001,2]
[406884971,1772265039711,-4000.0,0.00010027,2]